fUSD/lending_fUSD_20240331
["ID","MTS","AMOUNT","RATE_DAILY","PERIOD"]
[321115218,1711900324639,-629.64,0.00056164,120]
[321115219,1711900324648,-500.0,0.00056164,120]
[321115220,1711900324658,-531.25,0.00056164,120]
[321115221,1711900324667,-500.0,0.00056164,30]
[321115222,1711900324676,-543.59,0.00056164,120]
[321115223,1711900324686,-500.0,0.00056164,120]
[321115224,1711900324695,-500.0,0.00056164,120]
[321115225,1711900324706,-761.88,0.00056164,120]
[321115226,1711900324715,-500.0,0.00056164,120]
[321115227,1711900324726,-500.0,0.00056164,120]
[321115228,1711900324735,-711.25,0.00056164,120]
[321115229,1711900324745,-646.54,0.00056164,120]
[321115230,1711900324754,-1048.22,0.00056164,120]
[321115231,1711900324763,-500.0,0.00056164,120]
[321115232,1711900324773,-500.0,0.00056164,120]
[321115233,1711900324783,-500.0,0.00056164,120]
[321115234,1711900324793,-500.0,0.00056164,120]
[321115235,1711900324803,-500.0,0.00056164,120]
[321115236,1711900324812,-500.0,0.00056164,120]
[321115237,1711900324821,-500.0,0.00056164,120]
[321115238,1711900324831,-844.59,0.00056164,120]
[321115239,1711900324841,-519.79,0.00056164,120]
[321115240,1711900324851,-729.88,0.00056164,120]
[321115241,1711900324860,-539.07,0.00056164,120]
[321115242,1711900324869,-500.0,0.00056164,120]
[321115243,1711900324879,-915.41,0.00056164,120]
[321115244,1711900324888,-500.0,0.00056164,120]
[321115245,1711900324897,-500.0,0.00056164,120]
[321115246,1711900324907,-500.0,0.00056164,120]
[321115247,1711900324916,-771.12,0.00056164,120]
[321115248,1711900324926,-500.0,0.00056164,120]
[321115249,1711900324936,-500.0,0.00056164,120]
[321115250,1711900324946,-453.33732181,0.00056164,120]
[321115251,1711900324957,-544.62,0.00056164,120]
[321115252,1711900324967,-618.81,0.00056164,120]
[321115253,1711900324976,-560.35,0.00056164,120]
[321115254,1711900324986,-500.0,0.00056164,120]
[321115255,1711900324995,-500.0,0.00056164,120]
[321115256,1711900325004,-500.0,0.00056164,120]
[321115257,1711900325014,-500.0,0.00056164,120]
[321115258,1711900325024,-500.0,0.00056164,120]
[321115259,1711900325034,-500.0,0.00056164,120]
[321115260,1711900325045,-535.11036655,0.00056164,120]
[321115261,1711900325054,-500.0,0.00056164,120]
[321115262,1711900325064,-500.0,0.00056164,120]
[321115263,1711900325074,-500.0,0.00056164,120]
[321115264,1711900325084,-500.0,0.00056164,120]
[321115265,1711900325094,-860.0,0.00056164,120]
[321115266,1711900325104,-500.0,0.00056164,120]
[321115267,1711900325114,-500.0,0.00056164,120]
[321115268,1711900325124,-500.0,0.00056164,120]
[321115269,1711900325134,-504.86433439,0.00056164,120]
[321115270,1711900325144,-500.0,0.00056164,120]
[321115271,1711900325154,-500.0,0.00056164,120]
[321115272,1711900325164,-881.22,0.00056164,120]
[321115273,1711900325173,-500.0,0.00056164,120]
[321115274,1711900325183,-500.0,0.00056164,120]
[321115275,1711900325193,-508.12388215,0.00056164,120]
[321115276,1711900325203,-500.0,0.00056164,120]
[321115277,1711900325212,-644.32,0.00056164,120]
[321115278,1711900325221,-500.0,0.00056164,120]
[321115279,1711900325231,-500.0,0.00056164,120]
[321115280,1711900325241,-500.0,0.00056164,120]
[321115281,1711900325251,-500.0,0.00056164,120]
[321115282,1711900325262,-500.0,0.00056164,120]
[321115283,1711900325274,-544.03433764,0.00056164,120]
[321115284,1711900325285,-500.0,0.00056164,120]
[321115285,1711900325295,-499.95960714,0.00056164,120]
[321115286,1711900325305,-500.0,0.00056164,120]
[321115287,1711900325315,-500.0,0.00056164,120]
[321115288,1711900325325,-1276.69,0.00056164,120]
[321115289,1711900325335,-500.0,0.00056164,120]
[321115290,1711900325344,-500.0,0.00056164,120]
[321115291,1711900325353,-500.0,0.00056164,120]
[321115292,1711900325363,-500.0,0.00056164,120]
[321115293,1711900325373,-521.18605898,0.00056164,120]
[321115294,1711900325383,-500.0,0.00056164,120]
[321115295,1711900325393,-500.0,0.00056164,120]
[321115296,1711900325402,-500.0,0.00056164,120]
[321115297,1711900325412,-500.0,0.00056164,120]
[321115298,1711900325422,-500.0,0.00056164,120]
[321115299,1711900325432,-220.56364387,0.00056164,120]
[321115300,1711900325441,-500.0,0.00056164,120]
[321115301,1711900325452,-500.0,0.00056164,120]
[321115302,1711900325462,-500.0,0.00056164,120]
[321115303,1711900325471,-500.0,0.00056164,120]
[321115304,1711900325481,-500.0,0.00056164,120]
[321115305,1711900325491,-512.95044654,0.00056164,120]
[321115306,1711900325501,-500.0,0.00056164,120]
[321115307,1711900325510,-500.0,0.00056164,120]
[321115308,1711900325520,-500.0,0.00056164,120]
[321115309,1711900325529,-259.83,0.00056164,120]
[321115310,1711900325539,-500.0,0.00056164,120]
[321115311,1711900325548,-545.06,0.00056164,120]
[321115312,1711900325558,-554.91,0.00056164,120]
[321115313,1711900325568,-500.0,0.00056164,120]
[321115314,1711900325578,-500.0,0.00056164,120]
[321115315,1711900325587,-153.86820124,0.00056164,120]
[321115316,1711900325596,-510.94322129,0.00056164,120]
[321115317,1711900325606,-500.0,0.00056164,120]
[321115318,1711900325616,-688.34,0.00056164,120]
[321115319,1711900325626,-500.0,0.00056164,120]
[321115320,1711900325636,-1281.67,0.00056164,120]
[321115321,1711900325645,-511.9783462,0.00056164,120]
[321115322,1711900325655,-500.0,0.00056164,120]
[321115323,1711900325664,-1988.35,0.00056164,120]
[321115324,1711900325675,-500.0,0.00056164,120]
[321115325,1711900325685,-500.0,0.00056164,120]
[321115326,1711900325695,-500.0,0.00056164,120]
[321115327,1711900325704,-500.0,0.00056164,120]
[321115328,1711900325714,-555.54,0.00056164,120]
[321115329,1711900325724,-500.0,0.00056164,120]
[321115330,1711900325734,-4923.54,0.00056164,120]
[321115331,1711900325743,-593.25,0.00056164,120]
[321115332,1711900325753,-500.0,0.00056164,120]
[321115333,1711900325763,-500.0,0.00056164,120]
[321115334,1711900325772,-1037.57,0.00056164,120]
[321115335,1711900325781,-500.0,0.00056164,120]
[321115336,1711900325792,-1959.37,0.00056164,120]
[321115337,1711900325801,-500.0,0.00056164,120]
[321115338,1711900325811,-500.0,0.00056164,120]
[321115339,1711900325820,-500.0,0.00056164,120]
[321115340,1711900325830,-507.1,0.00056164,120]
[321115341,1711900325840,-973.96,0.00056164,120]
[321115342,1711900325850,-17432.97,0.00056164,120]
[321115343,1711900325859,-500.0,0.00056164,120]
[321115344,1711900325869,-500.0,0.00056164,120]
[321115345,1711900325878,-575.53,0.00056164,120]
[321115346,1711900325888,-500.0,0.00056164,120]
[321115347,1711900325898,-836.36,0.00056164,120]
[321115348,1711900325908,-1000.0,0.00056164,60]
[321115349,1711900325919,-664.02,0.00056164,120]
[321115350,1711900325929,-4982.73,0.00056164,120]
[321115351,1711900325939,-182.02611573,0.00056164,120]
[321115352,1711900325949,-1206.53,0.00056164,120]
[321115353,1711900325961,-500.0,0.00056164,120]
[321115354,1711900325970,-2111.34,0.00056164,120]
[321115355,1711900325980,-561.13,0.00056164,120]
[321115356,1711900325990,-535.14,0.00056164,120]
[321115357,1711900326000,-500.0,0.00056164,120]
[321115358,1711900326011,-500.0,0.00056164,120]
[321115359,1711900326103,-35203.05,0.00056164,120]
[321115360,1711900326114,-500.0,0.00056164,120]
[321115361,1711900326124,-500.0,0.00056164,120]
[321115362,1711900326133,-500.0,0.00056164,120]
[321115363,1711900326143,-500.0,0.00056164,120]
[321115364,1711900326152,-500.0,0.00056164,120]
[321115365,1711900326162,-20306.49,0.00056164,120]
[321115366,1711900326172,-500.0,0.00056164,120]
[321115367,1711900326181,-500.0,0.00056164,120]
[321115368,1711900326191,-2426.71,0.00056164,120]
[321115369,1711900326201,-500.0,0.00056164,120]
[321115370,1711900326211,-500.0,0.00056164,120]
[321115371,1711900326220,-3158.99,0.00056164,120]
[321115372,1711900326230,-500.0,0.00056164,120]
[321115373,1711900326241,-500.0,0.00056164,120]
[321115374,1711900326250,-6583.66,0.00056164,120]
[321115375,1711900326261,-550.6,0.00056164,120]
[321115376,1711900326274,-500.0,0.00056164,120]
[321115377,1711900326284,-500.0,0.00056164,120]
[321115378,1711900326295,-500.0,0.00056164,120]
[321115379,1711900326305,-500.0,0.00056164,120]
[321115380,1711900326315,-4743.47,0.00056164,120]
[321115381,1711900326324,-649.91,0.00056164,120]
[321115382,1711900326333,-500.0,0.00056164,120]
[321115383,1711900326343,-500.0,0.00056164,120]
[321115384,1711900326353,-500.0,0.00056164,120]
[321115385,1711900326362,-1008.94,0.00056164,120]
[321115386,1711900326371,-1501.81,0.00056164,120]
[321115387,1711900326381,-500.0,0.00056164,120]
[321115388,1711900326391,-500.0,0.00056164,120]
[321115389,1711900326400,-500.0,0.00056164,120]
[321115390,1711900326409,-594.92758324,0.00056164,120]
[321115391,1711900326418,-7272.15,0.00056164,120]
[321115392,1711900326428,-500.0,0.00056164,120]
[321115393,1711900326439,-500.0,0.00056164,120]
[321115394,1711900326448,-1951.74,0.00056164,120]
[321115395,1711900326458,-500.0,0.00056164,120]
[321115396,1711900326468,-1708.51,0.00056164,120]
[321115397,1711900326478,-2213.16,0.00056164,120]
[321115398,1711900326488,-500.0,0.00056164,120]
[321115399,1711900326498,-516.3,0.00056164,120]
[321115400,1711900326507,-500.0,0.00056164,120]
[321115401,1711900326517,-706.06,0.00056164,120]
[321115402,1711900326527,-500.0,0.00056164,120]
[321115403,1711900326536,-500.0,0.00056164,120]
[321115404,1711900326548,-500.0,0.00056164,120]
[321115405,1711900326558,-4238.83,0.00056164,120]
[321115406,1711900326568,-500.0,0.00056164,120]
[321115407,1711900326578,-1070.8,0.00056164,120]
[321115408,1711900326589,-1153.73,0.00056164,120]
[321115409,1711900326599,-500.0,0.00056164,120]
[321115410,1711900326608,-506.91,0.00056164,120]
[321115411,1711900326618,-500.0,0.00056164,120]
[321115412,1711900326628,-604.12418374,0.00056164,120]
[321115413,1711900326638,-500.0,0.00056164,120]
[321115414,1711900326648,-11263.13,0.00056164,120]
[321115415,1711900326657,-500.0,0.00056164,120]
[321115416,1711900326667,-500.0,0.00056164,120]
[321115417,1711900326677,-500.0,0.00056164,120]
[321115418,1711900326687,-500.0,0.00056164,120]
[321115419,1711900326697,-500.0,0.00056164,120]
[321115420,1711900326707,-6135.58,0.00056164,120]
[321115421,1711900326717,-500.0,0.00056164,120]
[321115422,1711900326727,-1063.3,0.00056164,120]
[321115423,1711900326737,-500.0,0.00056164,120]
[321115424,1711900326747,-1083.6,0.00056164,120]
[321115425,1711900326756,-500.0,0.00056164,120]
[321115426,1711900326765,-1674.93,0.00056164,120]
[321115427,1711900326775,-500.0,0.00056164,120]
[321115428,1711900326785,-547.37,0.00056164,120]
[321115429,1711900326797,-588.03,0.00056164,120]
[321115430,1711900326806,-1968.84,0.00056164,120]
[321115431,1711900326815,-3729.06,0.00056164,120]
[321115432,1711900326825,-500.0,0.00056164,120]
[321115433,1711900326834,-500.0,0.00056164,120]
[321115434,1711900326844,-4646.47,0.00056164,120]
[321115435,1711900326853,-2179.05,0.00056164,120]
[321115436,1711900326863,-16968.39,0.00056164,120]
[321115437,1711900326874,-500.0,0.00056164,120]
[321115438,1711900326883,-29017.57,0.00056164,120]
[321115439,1711900326893,-500.0,0.00056164,120]
[321115440,1711900326903,-551.57,0.00056164,120]
[321115441,1711900326912,-584.14,0.00056164,120]
[321115442,1711900326922,-500.0,0.00056164,120]
[321115443,1711900326933,-332.12,0.00056164,120]
[321115444,1711900326942,-890.16,0.00056164,120]
[321115445,1711900326952,-3354.8,0.00056164,120]
[321115446,1711900326962,-500.0,0.00056164,120]
[321115447,1711900326972,-911.19,0.00056164,120]
[321115448,1711900326982,-500.0,0.00056164,120]
[321115449,1711900326993,-749.8,0.00056164,120]
[321115450,1711900327003,-770.28,0.00056164,120]
[321115451,1711900327014,-500.0,0.00056164,120]
[321115452,1711900327024,-1117.84,0.00056164,120]
[321115453,1711900327034,-500.0,0.00056164,120]
[321115454,1711900327045,-1829.63,0.00056164,120]
[321115455,1711900327055,-3744.87,0.00056164,120]
[321115456,1711900327065,-500.0,0.00056164,120]
[321115457,1711900327076,-500.0,0.00056164,120]
[321115458,1711900327086,-500.0,0.00056164,120]
[321115459,1711900327095,-500.0,0.00056164,120]
[321115460,1711900327105,-542.88,0.00056164,120]
[321115461,1711900327116,-500.0,0.00056164,120]
[321115462,1711900327126,-1553.34,0.00056164,120]
[321115463,1711900327136,-500.0,0.00056164,120]
[321115464,1711900327146,-1915.68,0.00056164,120]
[321115465,1711900327156,-500.0,0.00056164,120]
[321115466,1711900327166,-500.0,0.00056164,120]
[321115467,1711900327176,-500.0,0.00056164,120]
[321115468,1711900327187,-500.0,0.00056164,120]
[321115469,1711900327197,-196.747745,0.00056164,120]
[321115470,1711900327206,-500.0,0.00056164,120]
[321115471,1711900327216,-500.0,0.00056164,120]
[321115472,1711900327225,-584.91,0.00056164,120]
[321115473,1711900327235,-1875.4,0.00056164,120]
[321115474,1711900327245,-500.0,0.00056164,120]
[321115475,1711900327254,-882.75,0.00056164,120]
[321115476,1711900327268,-500.0,0.00056164,120]
[321115477,1711900327281,-151.0,0.00056164,120]
[321115478,1711900327292,-196.747745,0.00056164,120]
[321115479,1711900327302,-733.42,0.00056164,120]
[321115480,1711900327314,-500.0,0.00056164,120]
[321115481,1711900327324,-500.0,0.00056164,120]
[321115482,1711900327333,-784.97,0.00056164,120]
[321115483,1711900327343,-500.0,0.00056164,120]
[321115484,1711900327354,-500.0,0.00056164,120]
[321115485,1711900327364,-2559.61,0.00056164,120]
[321115486,1711900327374,-500.0,0.00056164,120]
[321115487,1711900327384,-4029.59,0.00056164,120]
[321115488,1711900327394,-1741.29,0.00056164,120]
[321115489,1711900327404,-500.0,0.00056164,120]
[321115490,1711900327414,-8811.85,0.00056164,120]
[321115491,1711900327423,-612.97,0.00056164,120]
[321115492,1711900327433,-500.0,0.00056164,120]
[321115493,1711900327442,-2000.0,0.00056164,120]
[321115494,1711900327452,-2312.101622,0.00056164,120]
[321115495,1711900327461,-7506.96,0.00056164,21]
[321115496,1711900327471,-2797.36,0.00056164,120]
[321115497,1711900327481,-500.0,0.00056164,120]
[321115498,1711900327490,-1677.22,0.00056164,120]
[321115499,1711900327500,-1296.66,0.00056164,120]
[321115500,1711900327510,-500.0,0.00056164,120]
[321115501,1711900327520,-966.37,0.00056164,120]
[321115502,1711900327529,-500.0,0.00056164,120]
[321115503,1711900327539,-2312.101622,0.00056164,120]
[321115504,1711900327548,-500.0,0.00056164,120]
[321115505,1711900327557,-500.0,0.00056164,120]
[321115506,1711900327566,-500.0,0.00056164,120]
[321115507,1711900327576,-151.0,0.00056164,120]
[321115508,1711900327585,-12461.24,0.00056164,120]
[321115509,1711900327594,-500.0,0.00056164,120]
[321115510,1711900327603,-3203.08,0.00056164,120]
[321115511,1711900327614,-500.0,0.00056164,120]
[321115512,1711900327623,-1043.52,0.00056164,120]
[321115513,1711900327633,-4560.05,0.00056164,120]
[321115514,1711900327642,-500.0,0.00056164,120]
[321115515,1711900327652,-500.0,0.00056164,120]
[321115516,1711900327661,-436.499066,0.00056164,120]
[321115517,1711900327670,-524.290653,0.00056164,120]
[321115519,1711900327680,-1828.48,0.00056164,120]
[321115520,1711900327690,-500.0,0.00056164,120]
[321115521,1711900327700,-436.499066,0.00056164,120]
[321115522,1711900327709,-1209.33,0.00056164,120]
[321115523,1711900327718,-868.97,0.00056164,120]
[321115524,1711900327737,-500.0,0.00056164,7]
[321115525,1711900327747,-500.0,0.00056164,120]
[321115526,1711900327756,-151.0,0.00056164,120]
[321115527,1711900327766,-596.22,0.00056164,120]
[321115528,1711900327776,-524.290653,0.00056164,120]
[321115529,1711900327785,-500.0,0.00056164,120]
[321115530,1711900327796,-163.73,0.00056164,120]
[321115531,1711900327806,-609.97,0.00056164,120]
[321115532,1711900327815,-8356.87,0.00056164,120]
[321115533,1711900327825,-500.0,0.00056164,120]
[321115534,1711900327834,-500.0,0.00056164,120]
[321115535,1711900327844,-1782.7,0.00056164,120]
[321115536,1711900327853,-500.0,0.00056164,120]
[321115537,1711900327868,-734.891725,0.00056164,120]
[321115538,1711900327878,-525.13,0.00056164,120]
[321115539,1711900327888,-1415.86,0.00056164,120]
[321115540,1711900327897,-2311.2,0.00056164,120]
[321115541,1711900327907,-1616.02,0.00056164,120]
[321115542,1711900327916,-12648.79,0.00056164,120]
[321115543,1711900327925,-2232.12,0.00056164,120]
[321115544,1711900327935,-258.80559848,0.00056164,120]
[321115545,1711900327944,-1508.33,0.00056164,120]
[321115546,1711900327954,-500.0,0.00056164,120]
[321115547,1711900327964,-500.0,0.00056164,120]
[321115548,1711900327974,-500.0,0.00056164,120]
[321115549,1711900327984,-500.0,0.00056164,120]
[321115550,1711900327994,-151.0,0.00056164,30]
[321115551,1711900328004,-734.891725,0.00056164,120]
[321115552,1711900328013,-682.15,0.00056164,120]
[321115553,1711900328023,-1065.68,0.00056164,120]
[321115554,1711900328033,-500.0,0.00056164,120]
[321115555,1711900328043,-3149.36,0.00056164,120]
[321115556,1711900328052,-2930.26,0.00056164,120]
[321115557,1711900328062,-825.7454,0.00056164,120]
[321115558,1711900328072,-500.0,0.00056164,120]
[321115559,1711900328082,-179.04,0.00056164,120]
[321115560,1711900328092,-500.0,0.00056164,120]
[321115561,1711900328102,-696.26,0.00056164,120]
[321115562,1711900328112,-500.0,0.00056164,120]
[321115563,1711900328122,-825.7454,0.00056164,120]
[321115564,1711900328132,-500.0,0.00056164,120]
[321115565,1711900328142,-500.0,0.00056164,120]
[321115566,1711900328152,-1509.76,0.00056164,120]
[321115567,1711900328162,-515.16,0.00056164,120]
[321115568,1711900328173,-151.0,0.00056164,120]
[321115569,1711900328183,-500.0,0.00056164,120]
[321115570,1711900328192,-4982.8,0.00056164,120]
[321115571,1711900328202,-717.55,0.00056164,120]
[321115572,1711900328212,-2406.23,0.00056164,120]
[321115573,1711900328222,-500.0,0.00056164,120]
[321115574,1711900328232,-5346.73,0.00056164,120]
[321115575,1711900328242,-688.17,0.00056164,120]
[321115576,1711900328252,-500.0,0.00056164,120]
[321115577,1711900328262,-259.738436,0.00056164,30]
[321115578,1711900328275,-752.11,0.00056164,120]
[321115579,1711900328285,-3295.3,0.00056164,120]
[321115580,1711900328295,-551.95,0.00056164,120]
[321115581,1711900328305,-1648.61,0.00056164,120]
[321115582,1711900328315,-500.0,0.00056164,120]
[321115583,1711900328326,-716.5,0.00056164,120]
[321115584,1711900328335,-500.0,0.00056164,120]
[321115585,1711900328344,-694.07,0.00056164,120]
[321115586,1711900328355,-615.79,0.00056164,120]
[321115587,1711900328366,-883.93,0.00056164,120]
[321115588,1711900328375,-500.0,0.00056164,120]
[321115589,1711900328384,-403.644956,0.00056164,120]
[321115590,1711900328394,-188.385358,0.00056164,120]
[321115591,1711900328403,-500.0,0.00056164,120]
[321115592,1711900328413,-259.738436,0.00056164,30]
[321115593,1711900328423,-3973.68,0.00056164,120]
[321115594,1711900328432,-500.0,0.00056164,120]
[321115595,1711900328442,-151.0,0.00056164,7]
[321115596,1711900328451,-1150.28,0.00056164,120]
[321115597,1711900328460,-500.0,0.00056164,120]
[321115598,1711900328469,-403.644956,0.00056164,120]
[321115599,1711900328479,-1646.9,0.00056164,120]
[321115600,1711900328488,-1225.53,0.00056164,120]
[321115601,1711900328498,-2159.97,0.00056164,120]
[321115602,1711900328507,-500.0,0.00056164,120]
[321115603,1711900328516,-500.0,0.00056164,120]
[321115604,1711900328525,-500.0,0.00056164,120]
[321115605,1711900328534,-994.44,0.00056164,120]
[321115606,1711900328543,-500.0,0.00056164,120]
[321115607,1711900328553,-1115.67,0.00056164,120]
[321115608,1711900328562,-188.385358,0.00056164,120]
[321115609,1711900328572,-500.0,0.00056164,120]
[321115610,1711900328581,-4641.87,0.00056164,120]
[321115611,1711900328590,-500.0,0.00056164,120]
[321115612,1711900328601,-8787.96,0.00056164,120]
[321115613,1711900328610,-500.0,0.00056164,120]
[321115614,1711900328620,-500.0,0.00056164,120]
[321115615,1711900328630,-500.0,0.00056164,120]
[321115616,1711900328639,-1194.34,0.00056164,120]
[321115617,1711900328651,-500.0,0.00056164,120]
[321115618,1711900328660,-500.0,0.00056164,120]
[321115619,1711900328670,-500.0,0.00056164,120]
[321115620,1711900328680,-752.64,0.00056164,120]
[321115621,1711900328690,-500.0,0.00056164,120]
[321115622,1711900328699,-151.0,0.00056164,120]
[321115623,1711900328710,-3930.82,0.00056164,120]
[321115624,1711900328719,-1715.44,0.00056164,120]
[321115625,1711900328729,-7337.25,0.00056164,120]
[321115626,1711900328738,-500.0,0.00056164,120]
[321115627,1711900328748,-546.54,0.00056164,120]
[321115628,1711900328758,-500.0,0.00056164,120]
[321115629,1711900328768,-1000.0,0.00056164,120]
[321115630,1711900328777,-1001.76,0.00056164,120]
[321115631,1711900328787,-204.0,0.00056164,120]
[321115632,1711900328798,-1183.78,0.00056164,120]
[321115633,1711900328808,-787.48,0.00056164,120]
[321115634,1711900328817,-939.48,0.00056164,120]
[321115635,1711900328827,-596.63,0.00056164,120]
[321115636,1711900328837,-500.0,0.00056164,120]
[321115637,1711900328847,-602.91,0.00056164,120]
[321115638,1711900328857,-500.0,0.00056164,120]
[321115639,1711900328867,-2310.25,0.00056164,120]
[321115640,1711900328876,-1425.94,0.00056164,120]
[321115641,1711900328888,-6224.16,0.00056164,120]
[321115642,1711900328898,-500.0,0.00056164,120]
[321115643,1711900328908,-520.6,0.00056164,120]
[321115644,1711900328919,-1026.37,0.00056164,120]
[321115645,1711900328929,-1747.53,0.00056164,120]
[321115646,1711900328938,-1299.9,0.00056164,120]
[321115647,1711900328948,-6493.36,0.00056164,120]
[321115648,1711900328957,-500.0,0.00056164,120]
[321115649,1711900328967,-703.93,0.00056164,120]
[321115650,1711900328977,-202.687806,0.00056164,120]
[321115651,1711900328987,-500.0,0.00056164,120]
[321115652,1711900328997,-569.5,0.00056164,120]
[321115653,1711900329007,-534.81,0.00056164,120]
[321115654,1711900329016,-500.0,0.00056164,120]
[321115655,1711900329026,-670.0,0.00056164,120]
[321115656,1711900329035,-295.39990953,0.00056164,120]
[321115657,1711900329046,-1379.27,0.00056164,120]
[321115658,1711900329055,-833.15,0.00056164,120]
[321115659,1711900329064,-4176.95,0.00056164,120]
[321115660,1711900329074,-505.5302697,0.00056164,120]
[321115661,1711900329084,-2294.6,0.00056265,117]
[321115662,1711900329093,-596.55566256,0.00056438,120]
[321115663,1711900329103,-1239.43,0.00056438,120]
[321115664,1711900329112,-500.0,0.00056438,120]
[321115665,1711900329122,-171.06,0.00056438,120]
[321115666,1711900329131,-352.04,0.00056438,120]
[321115667,1711900329141,-664.59,0.00056438,2]
[321115668,1711900329151,-500.0,0.00056438,120]
[321115669,1711900329162,-500.0,0.00056438,120]
[321115670,1711900329171,-500.0,0.00056438,120]
[321115671,1711900329182,-500.0,0.00056438,120]
[321115672,1711900329191,-500.0,0.00056438,120]
[321115673,1711900329200,-500.0,0.00056438,120]
[321115674,1711900329210,-500.0,0.00056438,120]
[321115675,1711900329220,-622.67341861,0.00056438,120]
[321115676,1711900329229,-500.0,0.00056438,120]
[321115677,1711900329239,-500.0,0.00056438,120]
[321115678,1711900329248,-500.0,0.00056438,120]
[321115679,1711900329258,-527.64,0.00056438,120]
[321115680,1711900329268,-500.0,0.00056438,120]
[321115681,1711900329283,-500.0,0.00056438,120]
[321115682,1711900329293,-500.0,0.00056438,120]
[321115683,1711900329303,-500.0,0.00056438,120]
[321115684,1711900329313,-500.0,0.00056438,120]
[321115685,1711900329323,-500.0,0.00056438,120]
[321115686,1711900329333,-500.0,0.00056438,120]
[321115687,1711900329343,-500.0,0.00056438,120]
[321115688,1711900329353,-501.87938443,0.00056438,120]
[321115689,1711900329363,-202.27,0.00056438,120]
[321115690,1711900329372,-500.0,0.00056438,120]
[321115691,1711900329381,-500.0,0.00056438,120]
[321115692,1711900329391,-500.0,0.00056438,120]
[321115693,1711900329400,-500.0,0.00056438,120]
[321115694,1711900329409,-500.0,0.00056438,120]
[321115695,1711900329419,-500.0,0.00056438,120]
[321115696,1711900329429,-500.0,0.00056438,120]
[321115697,1711900329438,-500.0,0.00056438,120]
[321115698,1711900329448,-540.41503013,0.00056438,120]
[321115699,1711900329459,-500.0,0.00056438,120]
[321115700,1711900329469,-500.0,0.00056438,120]
[321115701,1711900329478,-500.0,0.00056438,120]
[321115702,1711900329487,-500.0,0.00056438,120]
[321115703,1711900329497,-500.0,0.00056438,120]
[321115704,1711900329506,-500.0,0.00056438,120]
[321115705,1711900329515,-500.0,0.00056438,120]
[321115706,1711900329525,-435.90899273,0.00056438,120]
[321115707,1711900329535,-500.0,0.00056438,120]
[321115708,1711900329545,-500.0,0.00056438,120]
[321115709,1711900329554,-500.0,0.00056438,120]
[321115710,1711900329564,-500.0,0.00056438,120]
[321115711,1711900329573,-500.0,0.00056438,120]
[321115712,1711900329582,-500.0,0.00056438,120]
[321115713,1711900329592,-500.0,0.00056438,120]
[321115714,1711900329601,-500.0,0.00056438,120]
[321115715,1711900329610,-500.0,0.00056438,120]
[321115716,1711900329620,-428.63,0.00056438,120]
[321115717,1711900329629,-500.0,0.00056438,120]
[321115718,1711900329638,-500.0,0.00056438,120]